[Event "European Womens-ch 2025"]
[Site "Rhodes"]
[Date "2025.04.04"]
[Round "5.11"]
[White "Socko, Monika"]
[Black "Gevorgyan, Maria"]
[Result "1-0"]
[Annotator "RC"]
[ECO "C45"]
[WhiteElo "2369"]
[BlackElo "2234"]
[PlyCount "81"]
[EventDate "2025.03.29"]
[EventType "swiss"]
[EventCountry "GRE"]
[SourceTitle "playchess.com"]
[Source "ChessBase"]
[SourceQuality "1"]
[TimeControl "40/5400+30:1800+30"]

1. e4 {[%emt 0:00:02]} e5 {[%emt 0:00:09]} 2. Nf3 {[%emt 0:00:07]} Nc6 {[%emt 0:00:06]} 3. d4 {[%emt 0:00:28]} exd4 {[%emt 0:00:07]} 4. Nxd4 {[%emt 0:00:04]} Nf6 {[%emt 0:00:05]} 5. Nxc6 {[%emt 0:00:28]} bxc6 {[%emt 0:00:06]} 6. Bd3 {[%emt 0:00:15]} d5 {[%emt 0:01:40]} 7. exd5 {[%emt 0:00:07]} cxd5 {[%emt 0:01:29]} 8. O-O {[%emt 0:00:07]} Be7 {[%emt 0:02:17]} 9. h3 {[%emt 0:00:06]} O-O {[%emt 0:01:07]} 10. Nd2 {[%emt 0:00:05]} c5 {[%emt 0:02:40]} 11. b3 {[%emt 0:00:13]} Bb7 {[%emt 0:01:26]} 12. Bb2 {[%emt 0:02:24]} Rb8 {[%emt 0:12:18]} 13. Re1 {[%emt 0:02:57]} Ba8 {[%emt 0:09:17]} 14. Be5 {[%emt 0:07:40]} Bd6 {[%emt 0:03:44]} 15. Nf3 {[%emt 0:08:48]} Re8 {[%emt 0:02:42]} 16. Bxd6 {[%emt 0:11:47]} Qxd6 {[%emt 0:00:25]} 17. Qd2 {[%emt 0:02:05]} d4 {[%emt 0:05:46]} 18. Nh2 {[%emt 0:00:26]} Qd5 {[%emt 0:09:47]} 19. f3 {[%emt 0:00:34]} Qd7 {[%emt 0:08:59]} 20. Ng4 {[%emt 0:05:53]} Nd5 {[%emt 0:02:18]} 21. Qg5 {[%emt 0:01:37]} Rb6 {[%emt 0:04:37]} 22. Qf5 {[%emt 0:03:39]} Rbe6 {[%emt 0:03:13]} 23. Qxh7+ {[%emt 0:00:39]} Kf8 {[%emt 0:00:01]} 24. Qh8+ {[%emt 0:00:35]} Ke7 {[%emt 0:00:07]} 25. Qxg7 {[%emt 0:00:33]} Kd8 {[%emt 0:00:12]} 26. Ne5 {[%emt 0:02:19]} Qe7 {[%emt 0:02:41]} 27. Nxf7+ {[%emt 0:01:06]} Kc7 {[%emt 0:00:04]} 28. Rxe6 {[%emt 0:04:02]} Qxe6 {[%emt 0:00:05]} 29. Ng5+ {[%emt 0:00:19]} Qe7 {[%emt 0:00:06]} 30. Qxe7+ {[%emt 0:00:34]} Rxe7 {[%emt 0:00:09]} 31. Kf2 {[%emt 0:01:02]} Ne3 {[%emt 0:01:11]} 32. Ne4 {[%emt 0:02:19]} Kb6 {[%emt 0:00:10]} 33. g4 {[%emt 0:00:52]} c4 {[%emt 0:03:30]} 34. bxc4 {[%emt 0:00:26]} Bxe4 {[%emt 0:00:13]} 35. Bxe4 {[%emt 0:00:22]} Nxc4 {[%emt 0:02:27]} 36. Rb1+ {[%emt 0:00:16]} Kc5 {[%emt 0:00:11]} 37. Rb7 {[%emt 0:00:32]} Rxb7 {[%emt 0:04:40]} 38. Bxb7 {[%emt 0:00:04]} Kb4 {[%emt 0:00:04]} 39. h4 {[%emt 0:01:32]} Nd6 {[%emt 0:05:49]} 40. Bd5 {[%emt 0:00:00]} a5 {[%emt 0:00:00]} 41. h5 {[%emt 0:01:57]} 1-0

[Event "European Womens-ch 2025"]
[Site "Rhodes"]
[Date "2025.04.04"]
[Round "5.12"]
[White "Bulmaga, Irina"]
[Black "Calzetta Ruiz, Monica"]
[Result "1-0"]
[Annotator "RC"]
[ECO "B27"]
[WhiteElo "2362"]
[BlackElo "2230"]
[PlyCount "63"]
[EventDate "2025.03.29"]
[EventType "swiss"]
[EventCountry "GRE"]
[SourceTitle "playchess.com"]
[Source "ChessBase"]
[SourceQuality "1"]
[TimeControl "40/5400+30:1800+30"]

1. e4 {[%emt 0:00:03]} c5 {[%emt 0:01:32]} 2. Nf3 {[%emt 0:00:10]} g6 {[%emt 0:00:10]} 3. c3 {[%emt 0:00:14]} d5 {[%emt 0:00:09]} 4. e5 {[%emt 0:00:20]} Bg4 {[%emt 0:00:17]} 5. Bb5+ {[%emt 0:04:15]} Nc6 {[%emt 0:01:57]} 6. O-O {[%emt 0:14:57]} Rc8 {[%emt 0:00:56]} 7. d4 {[%emt 0:05:34]} cxd4 {[%emt 0:03:31]} 8. cxd4 {[%emt 0:02:07]} Qb6 {[%emt 0:00:18]} 9. Nc3 {[%emt 0:06:43]} e6 {[%emt 0:01:58]} 10. Be3 {[%emt 0:06:14]} Nge7 {[%emt 0:02:03]} 11. h3 {[%emt 0:05:15]} Bxf3 {[%emt 0:03:50]} 12. Qxf3 {[%emt 0:00:03]} Bg7 {[%emt 0:00:17]} 13. Bxc6+ {[%emt 0:13:54]} Nxc6 {[%emt 0:04:10]} 14. Na4 {[%emt 0:01:44]} Qb5 {[%emt 0:20:08]} 15. Qd1 {[%emt 0:01:59]} b6 {[%emt 0:05:14]} 16. h4 {[%emt 0:03:33]} h5 {[%emt 0:05:59]} 17. Rb1 {[%emt 0:00:42]} Ne7 {[%emt 0:08:44]} 18. Nc3 {[%emt 0:01:46]} Qd7 {[%emt 0:07:02]} 19. Qd2 {[%emt 0:07:35]} Nf5 {[%emt 0:01:29]} 20. Bg5 {[%emt 0:00:03]} O-O {[%emt 0:02:12]} 21. Ne2 {[%emt 0:01:25]} Rc6 {[%emt 0:08:01]} 22. f3 {[%emt 0:00:35]} Rfc8 {[%emt 0:01:08]} 23. Rbc1 {[%emt 0:00:08]} Bf8 {[%emt 0:05:16]} 24. g4 {[%emt 0:00:54]} Rxc1 {[%emt 0:04:53]} 25. Rxc1 {[%emt 0:00:09]} hxg4 {[%emt 0:04:25]} 26. Rxc8 {[%emt 0:00:55]} Qxc8 {[%emt 0:00:04]} 27. fxg4 {[%emt 0:00:09]} Ne7 {[%emt 0:01:21]} 28. Kf2 {[%emt 0:04:29]} a5 {[%emt 0:02:59]} 29. Bf6 {[%emt 0:00:41]} a4 {[%emt 0:03:56]} 30. h5 {[%emt 0:01:07]} Qc4 {[%emt 0:00:14]} 31. Qg5 {[%emt 0:01:04]} Qxa2 {[%emt 0:00:56]} 32. Bxe7 {[%emt 0:00:23]} 1-0

[Event "European Womens-ch 2025"]
[Site "Rhodes"]
[Date "2025.04.04"]
[Round "5.13"]
[White "Urh, Zala"]
[Black "Kiolbasa, Oliwia"]
[Result "1/2-1/2"]
[Annotator "RC"]
[ECO "E01"]
[WhiteElo "2244"]
[BlackElo "2360"]
[PlyCount "115"]
[EventDate "2025.03.29"]
[EventType "swiss"]
[EventCountry "GRE"]
[SourceTitle "playchess.com"]
[Source "ChessBase"]
[SourceQuality "1"]
[TimeControl "40/5400+30:1800+30"]

1. d4 {[%emt 0:00:04]} Nf6 {[%emt 0:00:56]} 2. c4 {[%emt 0:00:04]} e6 {[%emt 0:00:09]} 3. Nf3 {[%emt 0:00:05]} d5 {[%emt 0:00:11]} 4. g3 {[%emt 0:00:08]} h6 {[%emt 0:00:23]} 5. Bg2 {[%emt 0:00:20]} Bd6 {[%emt 0:00:08]} 6. O-O {[%emt 0:00:07]} O-O {[%emt 0:00:14]} 7. Qc2 {[%emt 0:00:23]} b6 {[%emt 0:00:39]} 8. Nc3 {[%emt 0:05:17]} Bb7 {[%emt 0:00:43]} 9. Rd1 {[%emt 0:11:31]} Nbd7 {[%emt 0:04:45]} 10. b3 {[%emt 0:00:54]} a6 {[%emt 0:05:47]} 11. Bb2 {[%emt 0:01:29]} Qe7 {[%emt 0:00:33]} 12. Nd2 {[%emt 0:05:41]} c5 {[%emt 0:14:55]} 13. dxc5 {[%emt 0:05:08]} Bxc5 {[%emt 0:01:11]} 14. e3 {[%emt 0:01:50]} Rac8 {[%emt 0:04:24]} 15. Rac1 {[%emt 0:08:09]} b5 {[%emt 0:14:17]} 16. cxd5 {[%emt 0:11:41]} exd5 {[%emt 0:00:08]} 17. Qf5 {[%emt 0:02:26]} Qe6 {[%emt 0:18:49]} 18. Qxe6 {[%emt 0:11:56]} fxe6 {[%emt 0:00:03]} 19. Bh3 {[%emt 0:00:12]} Kf7 {[%emt 0:00:24]} 20. Ne2 {[%emt 0:09:51]} g5 {[%emt 0:00:47]} 21. Bg2 {[%emt 0:03:55]} e5 {[%emt 0:04:23]} 22. a3 {[%emt 0:03:33]} a5 {[%emt 0:07:28]} 23. Nc3 {[%emt 0:02:31]} b4 {[%emt 0:00:07]} 24. axb4 {[%emt 0:00:19]} axb4 {[%emt 0:00:53]} 25. Na4 {[%emt 0:02:11]} Ba7 {[%emt 0:00:22]} 26. Nf3 {[%emt 0:03:03]} Ke6 {[%emt 0:04:35]} 27. Ne1 {[%emt 0:00:10]} Bc6 {[%emt 0:00:23]} 28. Nd3 {[%emt 0:02:10]} Bxa4 {[%emt 0:02:08]} 29. bxa4 {[%emt 0:00:05]} b3 {[%emt 0:00:28]} 30. a5 {[%emt 0:03:14]} Rfd8 {[%emt 0:04:20]} 31. Nb4 {[%emt 0:03:58]} Rxc1 {[%emt 0:08:21]} 32. Rxc1 {[%emt 0:00:16]} Bc5 {[%emt 0:00:19]} 33. Nd3 {[%emt 0:02:06]} Bd6 {[%emt 0:00:06]} 34. Rc6 {[%emt 0:01:04]} Ke7 {[%emt 0:00:11]} 35. f4 {[%emt 0:01:04]} e4 {[%emt 0:02:00]} 36. Nc1 {[%emt 0:00:32]} Nc5 {[%emt 0:00:24]} 37. Rb6 {[%emt 0:00:29]} gxf4 {[%emt 0:00:42]} 38. gxf4 {[%emt 0:00:10]} Nfd7 {[%emt 0:01:10]} 39. Rb5 {[%emt 0:01:01]} Rb8 {[%emt 0:00:57]} 40. Rxb8 {[%emt 0:00:00]} Nxb8 {[%emt 0:00:00]} 41. Ba1 {[%emt 0:17:24]} Nc6 {[%emt 0:09:04]} 42. a6 {[%emt 0:01:22]} Bb8 {[%emt 0:00:13]} 43. Bf1 {[%emt 0:03:57]} Ba7 {[%emt 0:06:57]} 44. Bb5 {[%emt 0:07:20]} Nxa6 {[%emt 0:06:10]} 45. Kf2 {[%emt 0:01:43]} Ncb4 {[%emt 0:00:35]} 46. Bxa6 {[%emt 0:01:35]} Nxa6 {[%emt 0:00:09]} 47. Nxb3 {[%emt 0:00:03]} Nc5 {[%emt 0:01:15]} 48. Nxc5 {[%emt 0:00:07]} Bxc5 {[%emt 0:00:01]} 49. Bg7 {[%emt 0:01:02]} h5 {[%emt 0:00:16]} 50. Bc3 {[%emt 0:00:33]} Ke6 {[%emt 0:00:44]} 51. Bd2 {[%emt 0:00:25]} Kf5 {[%emt 0:01:10]} 52. Kg3 {[%emt 0:00:11]} Be7 {[%emt 0:02:44]} 53. Bc3 {[%emt 0:00:46]} Bc5 {[%emt 0:01:30]} 54. Bd2 {[%emt 0:00:06]} d4 {[%emt 0:00:04]} 55. exd4 {[%emt 0:00:11]} Bxd4 {[%emt 0:00:04]} 56. Kh4 {[%emt 0:00:52]} e3 {[%emt 0:00:07]} 57. Bxe3 {[%emt 0:00:05]} Bxe3 {[%emt 0:00:04]} 58. Kxh5 {[%emt 0:00:02]} 1/2-1/2

[Event "European Womens-ch 2025"]
[Site "Rhodes"]
[Date "2025.04.04"]
[Round "5.14"]
[White "Velikic, Adela"]
[Black "Gaponenko, Inna"]
[Result "1/2-1/2"]
[Annotator "RC"]
[ECO "B45"]
[WhiteElo "2214"]
[BlackElo "2349"]
[PlyCount "35"]
[EventDate "2025.03.29"]
[EventType "swiss"]
[EventCountry "GRE"]
[SourceTitle "playchess.com"]
[Source "ChessBase"]
[SourceQuality "1"]
[TimeControl "40/5400+30:1800+30"]

1. e4 {[%emt 0:01:21]} c5 {[%emt 0:00:10]} 2. Nf3 {[%emt 0:00:09]} Nc6 {[%emt 0:04:29]} 3. d4 {[%emt 0:00:06]} cxd4 {[%emt 0:00:05]} 4. Nxd4 {[%emt 0:00:03]} Nf6 {[%emt 0:02:25]} 5. Nc3 {[%emt 0:00:10]} e6 {[%emt 0:01:29]} 6. Ndb5 {[%emt 0:00:32]} Bb4 {[%emt 0:01:46]} 7. a3 {[%emt 0:00:17]} Bxc3+ {[%emt 0:00:06]} 8. Nxc3 {[%emt 0:00:04]} d5 {[%emt 0:00:05]} 9. exd5 {[%emt 0:00:57]} exd5 {[%emt 0:00:05]} 10. Bd3 {[%emt 0:01:04]} O-O {[%emt 0:00:10]} 11. O-O {[%emt 0:00:21]} Bg4 {[%emt 0:02:53]} 12. f3 {[%emt 0:04:14]} Bh5 {[%emt 0:00:05]} 13. Bg5 {[%emt 0:01:41]} Qb6+ {[%emt 0:00:12]} 14. Kh1 {[%emt 0:00:17]} Ne4 {[%emt 0:00:09]} 15. Nxe4 {[%emt 0:00:28]} dxe4 {[%emt 0:00:05]} 16. Bxe4 {[%emt 0:00:06]} Qxb2 {[%emt 0:00:05]} 17. Qb1 {[%emt 0:00:07]} Qb6 {[%emt 0:00:04]} 18. Qxb6 {[%emt 0:01:14]} 1/2-1/2

[Event "European Womens-ch 2025"]
[Site "Rhodes"]
[Date "2025.04.04"]
[Round "5.15"]
[White "Batsiashvili, Nino"]
[Black "Radeva, Viktoria"]
[Result "1-0"]
[Annotator "TA"]
[ECO "A11"]
[WhiteElo "2473"]
[BlackElo "2297"]
[PlyCount "89"]
[EventDate "2025.03.29"]
[EventType "swiss"]
[EventCountry "GRE"]
[SourceTitle "playchess.com"]
[Source "ChessBase"]
[SourceQuality "1"]
[TimeControl "40/5400+30:1800+30"]

{[%evp 14,89,4,-3,13,0,9,-89,33,37,7,28,40,-18,-13,-21,-8,-11,39,0,-6,0,0,-24,47,48,50,22,42,45,356,326,344,106,260,285,290,287,287,290,289,288,298,293,295,293,281,287,265,216,301,268,564,510,720,695,859,868,845,804,840,847,837,808,806,808,931,906,758,776,751,744,924,1023,987,983,633,521]} 1. c4 {[%emt 0:00:02]} e6 {[%emt 0:03:54]} 2. Nf3 {[%emt 0:00:08]} d5 {[%emt 0:00:34]} 3. e3 {[%emt 0:00:07]} Nf6 {[%emt 0:00:21]} 4. Nc3 {[%emt 0:00:15]} c6 {[%emt 0:00:25]} 5. b3 {[%emt 0:00:06]} Bd6 {[%emt 0:01:27]} 6. Bb2 {[%emt 0:00:02]} O-O {[%emt 0:01:03]} 7. Be2 {[%emt 0:00:05]} Nbd7 {[%emt 0:01:12]} 8. Qc2 {[%emt 0:00:11]} b6 {[%emt 0:06:21] A11: English Opening: 1...c6.} 9. h4 {[%emt 0:03:23]} Bb7 {[%emt 0:09:10]} 10. g4 $146 {[%emt 0:06:44]} (10. O-O-O e5 11. Kb1 a6 12. Ng5 b5 13. d3 h6 14. Nh3 d4 15. Ne4 Nxe4 16. dxe4 {½-½ Ambartsumova,K (2399)-Tarasova,V (2226) Titled Tuesday intern op 15th Nov Early blitz 2022 (6)}) 10... c5 {[%emt 0:13:38]} (10... Nxg4 $17 11. Rg1 Ngf6) 11. Nb5 $14 {[%emt 0:06:51]} Bb8 {[%emt 0:08:42]} 12. g5 {[%emt 0:00:09]} Ne4 {[%emt 0:01:06]} 13. cxd5 {[%emt 0:07:57]} (13. Rg1 $14) 13... exd5 $11 {[%emt 0:07:33][%cal Od5d4]} 14. d3 {[%emt 0:06:25]} Nd6 {[%emt 0:00:25]} 15. d4 {[%emt 0:08:03]} Re8 {[%emt 0:14:57]} (15... Qe7 $11) 16. Rd1 {[%emt 0:05:16]} (16. g6 {looks sharper.} hxg6 17. h5 gxh5 18. dxc5 Nxc5 19. Nxd6 Qxd6 20. Rxh5 Qg6 21. Qxg6 fxg6 22. Rg5) 16... Ne4 {[%emt 0:03:45]} 17. Nc3 {[%emt 0:07:27]} Qe7 {[%emt 0:01:34]} 18. Bb5 {[%emt 0:09:20]} a6 {[%emt 0:07:19]} ({Black should play} 18... Rd8 $11) 19. Bxd7 $14 {[%emt 0:02:40]} Qxd7 {[%emt 0:00:23]} 20. Nxe4 {[%emt 0:00:07]} Rxe4 {[%emt 0:05:01]} 21. dxc5 {[%emt 0:01:22]} d4 $2 {[%emt 0:07:53][%mdl 8192] White leaves nothing to chance now.} 22. Nxd4 $18 {[%emt 0:01:45]} bxc5 {[%emt 0:02:09] [#]} 23. Nf3 {[%emt 0:15:22]} (23. Qxc5 Ba7 (23... Re5 24. Qc3 $14) 24. Qa5 Bxd4 (24... Rxd4 25. Bxd4 Bf3 26. Qe5 $18) 25. Bxd4 Ree8 $14) (23. Nf5 $1 $18 Qe8 24. Bxg7 (24. Nxg7 Rxe3+ 25. Kf1 Qb5+ 26. Kg1 Be5 $18)) 23... Bd6 $2 {[%emt 0:02:25]} (23... Qe8 $16) 24. Qc3 {[%emt 0:01:08][%csl Gb2][%cal Rc3g7]} f6 {[%emt 0:00:20]} 25. gxf6 {[%emt 0:00:25]} Rg4 {[%emt 0:00:43] [#]} 26. Ng5 {[%emt 0:02:58]} Rxg5 {[%emt 0:00:24]} 27. hxg5 {[%emt 0:00:02][%cal Og5g6] g6! would kill now.} Bxh1 {[%emt 0:00:15]} 28. Qc4+ {[%emt 0:01:28]} (28. fxg7 Rd8) 28... Qf7 {[%emt 0:00:36]} 29. Qxf7+ {[%emt 0:00:08]} ({But not} 29. Rxd6 Qxc4 30. bxc4 Rb8) 29... Kxf7 {[%emt 0:00:03][%cal Bg8f7,Bf7e7,Be7d7][%mdl 32]} 30. Rxd6 {[%emt 0:00:05]} gxf6 {[%emt 0:00:30]} 31. Rxf6+ {[%emt 0:00:36][%mdl 4096] Endgame KRB-KRB. White is two pawns up.} Ke7 {[%emt 0:00:42]} 32. f3 {[%emt 0:01:25]} c4 $2 {[%emt 0:01:07]} (32... Rf8 {was worth a try.} 33. Rh6 (33. Rxa6 Bxf3 34. Ra7+ Kd6 $18) 33... Bxf3 34. Rxh7+ (34. Rxa6 Ra8 $18) 34... Kd6 35. Rh6+ Kd7) 33. bxc4 {[%emt 0:00:17] White is clearly winning.} Rb8 {[%emt 0:00:30]} 34. Ba3+ {[%emt 0:00:35]} Kd7 {[%emt 0:00:03]} 35. Kf2 {[%emt 0:00:05]} Rb1 {[%emt 0:00:25]} 36. Rxa6 {[%emt 0:00:48]} Ra1 {[%emt 0:00:05]} 37. Bb2 {[%emt 0:00:18]} Rd1 {[%emt 0:00:08]} 38. Bd4 {[%emt 0:00:14]} Rd2+ {[%emt 0:00:09]} 39. Kg3 {[%emt 0:00:14] Rh6 would now be deadly.} Rg2+ {[%emt 0:00:23]} 40. Kf4 {[%emt 0:00:00]} Rf2 {[%emt 0:00:00]} 41. Rh6 {[%emt 0:01:13][%csl LRh1,LRh7]} Bxf3 {[%emt 0:01:14]} 42. Rxh7+ {[%emt 0:00:30]} Ke6 {[%emt 0:00:04]} 43. Rh6+ {[%emt 0:00:11]} Ke7 {[%emt 0:00:21]} 44. Kg3 {[%emt 0:01:55]} Rf1 {[%emt 0:00:23]} 45. Rf6 {[%emt 0:00:14] Weighted Error Value: White=0.26 (precise) /Black=0.59  Loses game:     	---       	Black=1      Missed win:     	White=1     	---        Mistake:       	White=2     	Black=5      Inaccurate:     	White=1     	Black=2      OK:         	White=10    	Black=5      Best:        	White=5     	Black=6} 1-0

[Event "European Womens-ch 2025"]
[Site "Rhodes"]
[Date "2025.04.04"]
[Round "5.16"]
[White "Wagner, Dinara"]
[Black "Krasteva, Beloslava"]
[Result "1/2-1/2"]
[Annotator "RC"]
[ECO "E90"]
[WhiteElo "2440"]
[BlackElo "2257"]
[PlyCount "84"]
[EventDate "2025.03.29"]
[EventType "swiss"]
[EventCountry "GRE"]
[SourceTitle "playchess.com"]
[Source "ChessBase"]
[SourceQuality "1"]
[TimeControl "40/5400+30:1800+30"]

1. d4 {[%emt 0:00:02]} d6 {[%emt 0:03:11]} 2. Nf3 {[%emt 0:00:07]} Nf6 {[%emt 0:00:28]} 3. c4 {[%emt 0:00:04]} g6 {[%emt 0:00:19]} 4. Nc3 {[%emt 0:00:04]} Bg7 {[%emt 0:00:10]} 5. e4 {[%emt 0:00:05]} Bg4 {[%emt 0:00:13]} 6. Be2 {[%emt 0:00:06]} Bxf3 {[%emt 0:00:32]} 7. Bxf3 {[%emt 0:00:05]} e5 {[%emt 0:00:12]} 8. d5 {[%emt 0:00:40]} h5 {[%emt 0:00:12]} 9. Qb3 {[%emt 0:01:42]} Qc8 {[%emt 0:00:26]} 10. Bg5 {[%emt 0:23:52]} Nbd7 {[%emt 0:00:31]} 11. Qa4 {[%emt 0:00:05]} Kf8 {[%emt 0:04:40]} 12. h4 {[%emt 0:00:21]} Bh6 {[%emt 0:04:18]} 13. Bxh6+ {[%emt 0:00:03]} Rxh6 {[%emt 0:00:05]} 14. O-O-O {[%emt 0:00:51]} Nc5 {[%emt 0:00:56]} 15. Qc2 {[%emt 0:00:03]} a5 {[%emt 0:00:47]} 16. Kb1 {[%emt 0:00:04]} Kg7 {[%emt 0:00:40]} 17. g3 {[%emt 0:00:19]} Rh8 {[%emt 0:02:49]} 18. Bg2 {[%emt 0:01:07]} Re8 {[%emt 0:01:25]} 19. Bh3 {[%emt 0:10:05]} Qd8 {[%emt 0:05:15]} 20. Rde1 {[%emt 0:11:12]} a4 {[%emt 0:02:07]} 21. a3 {[%emt 0:00:15]} c6 {[%emt 0:02:04]} 22. Rhf1 Re7 {[%emt 0:00:30]} 23. f4 cxd5 {[%emt 0:00:30]} 24. cxd5 Qe8 {[%emt 0:00:30]} 25. f5 b5 {[%emt 0:00:30]} 26. Na2 Rc7 {[%emt 0:00:30]} 27. Nb4 Na6 {[%emt 0:00:30]} 28. Nc6 Nb8 {[%emt 0:00:30]} 29. Qf2 Nxc6 {[%emt 0:00:30]} 30. fxg6 {[%emt 0:37:12]} Qd8 {[%emt 0:00:30]} 31. dxc6 {[%emt 0:00:30]} fxg6 {[%emt 0:00:30]} 32. Be6 {[%emt 0:00:30]} Rb8 {[%emt 0:00:30]} 33. Bd5 {[%emt 0:00:30]} b4 {[%emt 0:00:30]} 34. Qe3 {[%emt 0:00:30]} bxa3 {[%emt 0:00:30]} 35. Qxa3 {[%emt 0:00:30]} Nxd5 {[%emt 0:00:30]} 36. exd5 {[%emt 0:00:30]} Rb3 {[%emt 0:00:30]} 37. Qxa4 {[%emt 0:00:30]} Qb8 {[%emt 0:00:30]} 38. Re2 {[%emt 0:00:30]} Ra7 {[%emt 0:00:30]} 39. Qc4 {[%emt 0:00:30]} Rb4 {[%emt 0:00:30]} 40. Qc3 {[%emt 0:00:30]} Rb3 {[%emt 0:00:30]} 41. Qc4 {[%emt 0:30:30]} Rb4 {[%emt 0:30:30]} 42. Qc3 {[%emt 0:00:30]} Rb3 {[%emt 0:00:30]} 1/2-1/2

[Event "European Womens-ch 2025"]
[Site "Rhodes"]
[Date "2025.04.04"]
[Round "5.17"]
[White "Yao, Lan"]
[Black "Javakhishvili, Lela"]
[Result "1/2-1/2"]
[Annotator "RC"]
[ECO "C47"]
[WhiteElo "2294"]
[BlackElo "2429"]
[PlyCount "30"]
[EventDate "2025.03.29"]
[EventType "swiss"]
[EventCountry "GRE"]
[SourceTitle "playchess.com"]
[Source "ChessBase"]
[SourceQuality "1"]
[TimeControl "40/5400+30:1800+30"]

1. e4 {[%emt 0:01:33]} e5 {[%emt 0:00:15]} 2. Nf3 {[%emt 0:00:07]} Nc6 {[%emt 0:00:07]} 3. d4 {[%emt 0:00:05]} exd4 {[%emt 0:00:07]} 4. Nxd4 {[%emt 0:00:02]} Nf6 {[%emt 0:00:08]} 5. Nc3 {[%emt 0:00:03]} Bb4 {[%emt 0:00:43]} 6. Nxc6 {[%emt 0:00:05]} bxc6 {[%emt 0:00:12]} 7. Bd3 {[%emt 0:00:06]} d5 {[%emt 0:01:49]} 8. exd5 {[%emt 0:00:05]} O-O {[%emt 0:00:10]} 9. O-O {[%emt 0:00:04]} cxd5 {[%emt 0:00:26]} 10. h3 {[%emt 0:00:15]} Be6 {[%emt 0:02:52]} 11. Qf3 {[%emt 0:00:31]} Rb8 {[%emt 0:15:52]} 12. Bf4 {[%emt 0:08:11]} Bd6 {[%emt 0:01:43]} 13. b3 {[%emt 0:01:00]} c5 {[%emt 0:01:19]} 14. Bxd6 {[%emt 0:10:21]} Qxd6 {[%emt 0:00:07]} 15. Rad1 {[%emt 0:00:05]} Qc7 {[%emt 0:03:02]} 1/2-1/2

[Event "European Womens-ch 2025"]
[Site "Rhodes"]
[Date "2025.04.04"]
[Round "5.18"]
[White "Smietanska, Wiktoria"]
[Black "Kulon, Klaudia"]
[Result "1-0"]
[Annotator "RC"]
[ECO "C02"]
[WhiteElo "2254"]
[BlackElo "2401"]
[PlyCount "103"]
[EventDate "2025.03.29"]
[EventType "swiss"]
[EventCountry "GRE"]
[SourceTitle "playchess.com"]
[Source "ChessBase"]
[SourceQuality "1"]
[TimeControl "40/5400+30:1800+30"]

1. e4 {[%emt 0:00:03]} e6 {[%emt 0:01:45]} 2. d4 {[%emt 0:00:08]} d5 {[%emt 0:00:10]} 3. e5 {[%emt 0:00:10]} c5 {[%emt 0:00:14]} 4. c3 {[%emt 0:00:07]} Nc6 {[%emt 0:00:14]} 5. Nf3 {[%emt 0:00:24]} Qb6 {[%emt 0:00:14]} 6. a3 {[%emt 0:00:14]} c4 {[%emt 0:00:18]} 7. Nbd2 {[%emt 0:00:20]} Na5 {[%emt 0:00:20]} 8. Rb1 {[%emt 0:00:21]} Bd7 {[%emt 0:00:34]} 9. h4 {[%emt 0:00:26]} O-O-O {[%emt 0:01:42]} 10. h5 {[%emt 0:01:00]} h6 {[%emt 0:00:26]} 11. b4 {[%emt 0:00:48]} cxb3 {[%emt 0:02:19]} 12. Nxb3 {[%emt 0:00:43]} Ba4 {[%emt 0:03:44]} 13. Nfd2 {[%emt 0:01:02]} Be7 {[%emt 0:13:05]} 14. Qc2 {[%emt 0:04:49]} Bg5 {[%emt 0:10:23]} 15. Qa2 {[%emt 0:05:22]} Bxb3 {[%emt 0:03:47]} 16. Nxb3 {[%emt 0:00:16]} Bxc1 {[%emt 0:01:19]} 17. Nc5 {[%emt 0:09:57]} Qc7 {[%emt 0:05:47]} 18. Rxc1 {[%emt 0:00:37]} Ne7 {[%emt 0:03:32]} 19. Be2 {[%emt 0:05:42]} Nec6 {[%emt 0:02:40]} 20. f4 {[%emt 0:02:23]} b6 {[%emt 0:01:41]} 21. Na6 {[%emt 0:05:27]} Qe7 {[%emt 0:01:18]} 22. Nb4 {[%emt 0:03:16]} Kb8 {[%emt 0:02:29]} 23. Bb5 {[%emt 0:04:57]} Rc8 {[%emt 0:00:58]} 24. O-O {[%emt 0:03:07]} Ka8 {[%emt 0:03:08]} 25. Qe2 {[%emt 0:06:09]} Rc7 {[%emt 0:05:05]} 26. f5 {[%emt 0:10:33]} Qg5 {[%emt 0:01:46]} 27. Rcd1 {[%emt 0:06:00]} Ne7 {[%emt 0:04:12]} 28. fxe6 {[%emt 0:03:54]} fxe6 {[%emt 0:00:02]} 29. Qf3 {[%emt 0:01:59]} Nc4 {[%emt 0:03:53]} 30. Na6 {[%emt 0:07:29]} Rcc8 {[%emt 0:01:22]} 31. Rf2 {[%emt 0:03:07]} Ne3 {[%emt 0:04:31]} 32. Rd3 {[%emt 0:02:55]} Ng4 {[%emt 0:00:08]} 33. Rf1 {[%emt 0:01:09]} Qxh5 {[%emt 0:08:04]} 34. Qh3 {[%emt 0:00:57]} Qg6 {[%emt 0:00:57]} 35. Rdf3 {[%emt 0:05:52]} h5 {[%emt 0:05:48]} 36. Bd7 {[%emt 0:01:50]} Rc4 {[%emt 0:02:58]} 37. Rf7 {[%emt 0:02:35]} Nf5 {[%emt 0:03:03]} 38. R7xf5 {[%emt 0:02:29]} Kb7 {[%emt 0:03:28]} 39. Nc5+ {[%emt 0:00:50]} bxc5 {[%emt 0:00:36]} 40. Rf7 {[%emt 0:00:00]} Ka6 {[%emt 0:00:00]} 41. a4 {[%emt 0:11:18]} Rb8 {[%emt 0:10:04]} 42. Bb5+ {[%emt 0:03:57]} Rxb5 {[%emt 0:00:03]} 43. axb5+ {[%emt 0:00:11]} Kb6 {[%emt 0:00:03]} 44. Qh4 {[%emt 0:05:16]} Rxc3 {[%emt 0:03:00]} 45. dxc5+ {[%emt 0:09:28]} Kxb5 {[%emt 0:00:39]} 46. Qe7 {[%emt 0:01:27]} Kc4 {[%emt 0:05:42]} 47. Qxa7 {[%emt 0:00:31]} Ne3 {[%emt 0:02:25]} 48. Qa6+ {[%emt 0:01:09]} Kxc5 {[%emt 0:01:45]} 49. Qa7+ {[%emt 0:00:27]} Kc4 {[%emt 0:01:10]} 50. Rc7+ {[%emt 0:00:09]} Kb4 {[%emt 0:00:03]} 51. Qb6+ {[%emt 0:00:16]} Ka4 {[%emt 0:00:06]} 52. Ra7# {[%emt 0:00:06]} 1-0